fUSD/lending_fUSD_20240814
["ID","MTS","AMOUNT","RATE_DAILY","PERIOD"]
[334832629,1723606239087,-500.0,0.00013698,2]
[334832630,1723606239097,-628.21,0.00013698,2]
[334832631,1723606239106,-500.0,0.00013698,2]
[334832632,1723606239115,-500.0,0.00013698,2]
[334832633,1723606239125,-500.0,0.00013698,2]
[334832634,1723606239134,-1008.16,0.00013698,2]
[334832635,1723606239144,-500.0,0.00013698,2]
[334832636,1723606239154,-500.0,0.00013698,2]
[334832637,1723606239163,-500.0,0.00013698,2]
[334832638,1723606239172,-796.04,0.00013698,2]
[334832639,1723606239183,-500.0,0.00013698,2]
[334832640,1723606239192,-500.0,0.00013698,2]
[334832641,1723606239201,-500.0,0.00013698,2]
[334832642,1723606239211,-500.0,0.00013698,2]
[334832643,1723606239221,-500.0,0.00013698,2]
[334832644,1723606239230,-500.0,0.00013698,2]
[334832645,1723606239240,-1082.31,0.00013698,2]
[334832646,1723606239250,-500.0,0.00013698,2]
[334832647,1723606239259,-500.0,0.00013698,2]
[334832648,1723606239268,-500.0,0.00013698,2]
[334832649,1723606239278,-500.0,0.00013698,2]
[334832650,1723606239287,-1596.04,0.00013698,2]
[334832651,1723606239297,-724.72,0.00013698,2]
[334832652,1723606239306,-500.0,0.00013698,2]
[334832653,1723606239315,-647.99,0.00013698,2]
[334832654,1723606239327,-500.0,0.00013698,2]
[334832655,1723606239336,-500.0,0.00013698,2]
[334832656,1723606239346,-977.0,0.00013698,2]
[334832657,1723606239355,-500.0,0.00013698,2]
[334832658,1723606239365,-500.0,0.00013698,2]
[334832659,1723606239375,-840.35,0.00013698,2]
[334832660,1723606239384,-500.0,0.00013698,2]
[334832661,1723606239394,-500.0,0.00013698,2]
[334832662,1723606239403,-500.0,0.00013698,2]
[334832663,1723606239413,-500.0,0.00013698,2]
[334832664,1723606239422,-809.96,0.00013698,2]
[334832665,1723606239432,-500.0,0.00013698,2]
[334832666,1723606239441,-2029.07,0.00013698,2]
[334832667,1723606239451,-500.0,0.00013698,2]
[334832668,1723606239460,-500.0,0.00013698,2]
[334832669,1723606239469,-500.0,0.00013698,2]
[334832670,1723606239478,-500.0,0.00013698,2]
[334832671,1723606239487,-500.0,0.00013698,2]
[334832672,1723606239496,-500.0,0.00013698,2]
[334832673,1723606239506,-500.0,0.00013698,2]
[334832674,1723606239515,-500.0,0.00013698,2]
[334832675,1723606239524,-529.41,0.00013698,2]
[334832676,1723606239533,-500.0,0.00013698,2]
[334832677,1723606239543,-500.0,0.00013698,2]
[334832678,1723606239552,-615.91,0.00013698,2]
[334832679,1723606239561,-649.16,0.00013698,2]
[334832680,1723606239571,-500.0,0.00013698,2]
[334832681,1723606239580,-766.96,0.00013698,2]
[334832682,1723606239590,-500.0,0.00013698,2]
[334832683,1723606239599,-500.0,0.00013698,2]
[334832684,1723606239608,-809.11,0.00013698,2]
[334832686,1723606239617,-577.76,0.00013698,2]
[334832688,1723606239627,-1127.52,0.00013698,2]
[334832690,1723606239636,-500.0,0.00013698,2]
[334832692,1723606239646,-500.0,0.00013698,2]
[334832693,1723606239655,-1199.36,0.00013698,2]
[334832694,1723606239664,-500.0,0.00013698,2]
[334832695,1723606239673,-500.0,0.00013698,2]
[334832696,1723606239682,-500.0,0.00013698,2]
[334832697,1723606239692,-2817.32,0.00013698,2]
[334832698,1723606239701,-500.0,0.00013698,2]
[334832699,1723606239710,-516.75,0.00013698,2]
[334832700,1723606239720,-685.63,0.00013698,2]
[334832701,1723606239730,-626.55,0.00013698,2]
[334832702,1723606239742,-500.0,0.00013698,2]
[334832703,1723606239751,-500.0,0.00013698,2]
[334832704,1723606239761,-500.0,0.00013698,2]
[334832705,1723606239770,-744.96,0.00013698,2]
[334832706,1723606239779,-965.94,0.00013698,2]
[334832707,1723606239788,-1535.24,0.00013698,2]
[334832708,1723606239798,-500.0,0.00013698,2]
[334832709,1723606239807,-500.0,0.00013698,2]
[334832710,1723606239816,-500.0,0.00013698,2]
[334832711,1723606239829,-500.0,0.00013698,2]
[334832712,1723606239838,-500.0,0.00013698,2]
[334832713,1723606239848,-417.06102174,0.00013698,2]
[334832714,1723606239858,-1269.45,0.00013698,2]
[334832715,1723606239868,-500.0,0.00013698,2]
[334832716,1723606239877,-500.0,0.00013698,2]
[334832717,1723606239887,-500.0,0.00013698,2]
[334832718,1723606239897,-951.12,0.00013698,2]
[334832719,1723606239907,-1022.29,0.00013698,2]
[334832720,1723606239917,-518.69,0.00013698,2]
[334832721,1723606240003,-500.0,0.00013698,2]
[334832722,1723606240014,-500.0,0.00013698,2]
[334832723,1723606240023,-392.07602451,0.00013698,2]
[334832724,1723606240032,-500.0,0.00013698,2]
[334832725,1723606240042,-500.0,0.00013698,2]
[334832726,1723606240051,-500.0,0.00013698,2]
[334832727,1723606240060,-957.28,0.00013698,2]
[334832728,1723606240071,-500.0,0.00013698,2]
[334832729,1723606240079,-500.0,0.00013698,2]
[334832730,1723606240088,-500.0,0.00013698,2]
[334832731,1723606240097,-500.0,0.00013698,2]
[334832732,1723606240106,-500.0,0.00013698,2]
[334832733,1723606240115,-553.98,0.00013698,2]
[334832734,1723606240124,-500.0,0.00013698,2]
[334832735,1723606240134,-555.03,0.00013698,2]
[334832736,1723606240143,-500.0,0.00013698,2]
[334832737,1723606240152,-717.25,0.00013698,2]
[334832738,1723606240162,-500.0,0.00013698,2]
[334832739,1723606240171,-641.38,0.00013698,2]
[334832740,1723606240180,-500.0,0.00013698,2]
[334832741,1723606240190,-1091.13,0.00013698,2]
[334832742,1723606240199,-773.36,0.00013698,2]
[334832743,1723606240208,-500.0,0.00013698,2]
[334832744,1723606240217,-500.0,0.00013698,2]
[334832745,1723606240226,-500.0,0.00013698,2]
[334832746,1723606240235,-500.0,0.00013698,2]
[334832747,1723606240244,-500.0,0.00013698,2]
[334832748,1723606240253,-558.45,0.00013698,2]
[334832749,1723606240263,-829.14,0.00013698,2]
[334832750,1723606240271,-500.0,0.00013698,2]
[334832751,1723606240280,-500.0,0.00013698,2]
[334832752,1723606240289,-500.0,0.00013698,2]
[334832753,1723606240298,-500.0,0.00013698,2]
[334832754,1723606240307,-1184.9,0.00013698,2]
[334832755,1723606240317,-1293.99,0.00013698,2]
[334832756,1723606240327,-1677.47,0.00013698,2]
[334832757,1723606240336,-500.0,0.00013698,2]
[334832758,1723606240345,-500.0,0.00013698,2]
[334832759,1723606240355,-500.0,0.00013698,2]
[334832760,1723606240364,-500.0,0.00013698,2]
[334832762,1723606240373,-500.0,0.00013698,2]
[334832764,1723606240382,-500.0,0.00013698,2]
[334832765,1723606240391,-500.0,0.00013698,2]
[334832767,1723606240401,-984.09,0.00013698,2]
[334832769,1723606240410,-654.41,0.00013698,2]
[334832771,1723606240420,-1087.78,0.00013698,2]
[334832773,1723606240429,-500.0,0.00013698,2]
[334832775,1723606240438,-578.16,0.00013698,2]
[334832777,1723606240448,-500.0,0.00013698,2]
[334832779,1723606240458,-1251.36,0.00013698,2]
[334832781,1723606240467,-807.41,0.00013698,2]
[334832783,1723606240478,-500.0,0.00013698,2]
[334832785,1723606240488,-500.0,0.00013698,2]
[334832787,1723606240497,-500.0,0.00013698,2]
[334832789,1723606240507,-500.0,0.00013698,2]
[334832791,1723606240516,-500.0,0.00013698,2]
[334832793,1723606240526,-944.36,0.00013698,2]
[334832795,1723606240535,-500.0,0.00013698,2]
[334832796,1723606240545,-500.0,0.00013698,2]
[334832798,1723606240556,-1708.58,0.00013698,2]
[334832800,1723606240567,-500.0,0.00013698,2]
[334832802,1723606240577,-500.0,0.00013698,2]
[334832804,1723606240586,-500.0,0.00013698,2]
[334832806,1723606240595,-500.27,0.00013698,2]
[334832807,1723606240604,-500.0,0.00013698,2]
[334832808,1723606240614,-646.54,0.00013698,2]
[334832809,1723606240623,-500.0,0.00013698,2]
[334832810,1723606240632,-784.06,0.00013698,2]
[334832811,1723606240641,-500.0,0.00013698,2]
[334832812,1723606240651,-835.29,0.00013698,2]
[334832813,1723606240659,-1238.23,0.00013698,2]
[334832814,1723606240668,-500.0,0.00013698,2]
[334832815,1723606240678,-500.0,0.00013698,2]
[334832816,1723606240687,-1000.0,0.00013698,2]
[334832817,1723606240696,-1139.49,0.00013698,2]
[334832818,1723606240705,-500.0,0.00013698,2]
[334832819,1723606240714,-500.0,0.00013698,2]
[334832820,1723606240723,-500.0,0.00013698,2]
[334832821,1723606240733,-537.59,0.00013698,2]
[334832822,1723606240744,-1034.38,0.00013698,2]
[334832823,1723606240753,-500.0,0.00013698,2]
[334832824,1723606240763,-500.0,0.00013698,2]
[334832826,1723606240772,-500.0,0.00013698,2]
[334832828,1723606240780,-997.12,0.00013698,2]
[334832830,1723606240790,-500.0,0.00013698,2]
[334832832,1723606240799,-528.15,0.00013698,2]
[334832834,1723606240808,-1181.95,0.00013698,2]
[334832836,1723606240817,-1270.94,0.00013698,2]
[334832838,1723606240831,-500.0,0.00013698,2]
[334832840,1723606240840,-1098.8,0.00013698,2]
[334832842,1723606240850,-780.85,0.00013698,2]
[334832844,1723606240859,-500.0,0.00013698,2]
[334832845,1723606240868,-500.0,0.00013698,2]
[334832847,1723606240878,-1556.42,0.00013698,2]
[334832849,1723606240887,-500.0,0.00013698,2]
[334832851,1723606240896,-500.0,0.00013698,2]
[334832853,1723606240906,-500.0,0.00013698,2]
[334832855,1723606240915,-500.0,0.00013698,2]
[334832857,1723606240924,-500.0,0.00013698,2]
[334832858,1723606240933,-500.0,0.00013698,2]
[334832860,1723606240942,-1599.24,0.00013698,2]
[334832862,1723606240951,-522.35707222,0.00013698,2]
[334832864,1723606240960,-500.0,0.00013698,2]
[334832866,1723606240970,-500.0,0.00013698,2]
[334832867,1723606240978,-500.0,0.00013698,2]
[334832869,1723606240986,-786.57,0.00013698,2]
[334832871,1723606240995,-500.0,0.00013698,2]
[334832873,1723606241004,-500.0,0.00013698,2]
[334832875,1723606241014,-500.0,0.00013698,2]
[334832877,1723606241023,-500.0,0.00013698,2]
[334832879,1723606241032,-1240.35,0.00013698,2]
[334832881,1723606241041,-500.0,0.00013698,2]
[334832883,1723606241051,-2176.43,0.00013698,2]
[334832885,1723606241060,-501.2148002,0.00013698,2]
[334832886,1723606241069,-500.0,0.00013698,2]
[334832888,1723606241079,-501.94,0.00013698,2]
[334832890,1723606241088,-500.0,0.00013698,2]
[334832892,1723606241097,-500.0,0.00013698,2]
[334832894,1723606241107,-501.38112643,0.00013698,2]
[334832896,1723606241116,-664.12,0.00013698,2]
[334832898,1723606241125,-500.0,0.00013698,2]
[334832900,1723606241134,-2390.4,0.00013698,2]
[334832902,1723606241143,-500.0,0.00013698,2]
[334832904,1723606241152,-500.0,0.00013698,2]
[334832906,1723606241161,-500.0,0.00013698,2]
[334832908,1723606241170,-500.0,0.00013698,2]
[334832910,1723606241179,-500.0,0.00013698,2]
[334832912,1723606241188,-854.04,0.00013698,2]
[334832914,1723606241197,-500.0,0.00013698,2]
[334832916,1723606241207,-618.23,0.00013698,2]
[334832918,1723606241217,-1141.67,0.00013698,2]
[334832920,1723606241226,-500.0,0.00013698,2]
[334832922,1723606241235,-464.48894618,0.00013698,2]
[334832924,1723606241244,-1092.78,0.00013698,2]
[334832926,1723606241253,-500.0,0.00013698,2]
[334832928,1723606241262,-500.0,0.00013698,2]
[334832930,1723606241272,-1391.15,0.00013698,2]
[334832931,1723606241281,-500.0,0.00013698,2]
[334832933,1723606241291,-500.0,0.00013698,2]
[334832936,1723606241300,-846.62,0.00013698,2]
[334832937,1723606241309,-500.0,0.00013698,2]
[334832939,1723606241318,-500.0,0.00013698,2]
[334832941,1723606241336,-501.79661498,0.00013698,2]
[334832944,1723606241345,-500.0,0.00013698,2]
[334832946,1723606241355,-500.0,0.00013698,2]
[334832948,1723606241363,-500.0,0.00013698,2]
[334832950,1723606241373,-500.0,0.00013698,2]
[334832952,1723606241383,-500.0,0.00013698,2]
[334832954,1723606241392,-500.0,0.00013698,2]
[334832956,1723606241402,-652.68,0.00013698,2]
[334832957,1723606241411,-1558.62,0.00013698,2]
[334832960,1723606241421,-500.0,0.00013698,2]
[334832962,1723606241432,-500.0,0.00013698,2]
[334832964,1723606241442,-500.0,0.00013698,2]
[334832966,1723606241452,-500.0,0.00013698,2]
[334832968,1723606241460,-500.0,0.00013698,2]
[334832970,1723606241469,-500.0,0.00013698,2]
[334832972,1723606241479,-500.0,0.00013698,2]
[334832974,1723606241488,-500.0,0.00013698,2]
[334832976,1723606241497,-500.0,0.00013698,2]
[334832977,1723606241506,-500.0,0.00013698,2]
[334832978,1723606241515,-500.0,0.00013698,2]
[334832979,1723606241524,-1837.2,0.00013698,2]
[334832980,1723606241534,-500.0,0.00013698,2]
[334832981,1723606241543,-827.46,0.00013698,2]
[334832982,1723606241552,-584.71,0.00013698,2]
[334832983,1723606241562,-1094.18,0.00013698,2]
[334832984,1723606241572,-600.82650932,0.00013698,2]
[334832985,1723606241582,-500.0,0.00013698,2]
[334832986,1723606241591,-500.0,0.00013698,2]
[334832987,1723606241600,-500.0,0.00013698,2]
[334832988,1723606241609,-500.0,0.00013698,2]
[334832989,1723606241619,-500.0,0.00013698,2]
[334832990,1723606241628,-923.76,0.00013698,2]
[334832991,1723606241637,-500.0,0.00013698,2]
[334832992,1723606241647,-500.0,0.00013698,2]
[334832993,1723606241655,-2601.81,0.00013698,2]
[334832994,1723606241664,-1963.59,0.00013698,2]
[334832995,1723606241674,-638.65,0.00013698,2]
[334832996,1723606241683,-530.18950419,0.00013698,2]
[334832997,1723606241692,-1049.63,0.00013698,2]
[334832998,1723606241701,-500.0,0.00013698,2]
[334832999,1723606241710,-532.86,0.00013698,2]
[334833000,1723606241719,-663.4,0.00013698,2]
[334833001,1723606241729,-167.63180873,0.00013698,2]
[334833002,1723606241740,-808.44,0.00013698,2]
[334833003,1723606241749,-1589.14,0.00013698,2]
[334833004,1723606241758,-500.0,0.00013698,2]
[334833005,1723606241768,-500.0,0.00013698,2]
[334833006,1723606241777,-310.093315,0.00013698,2]
[334833007,1723606241786,-500.0,0.00013698,2]
[334833008,1723606241795,-500.0,0.00013698,2]
[334833009,1723606241804,-500.0,0.00013698,2]
[334833010,1723606241813,-1726.13,0.00013698,2]
[334833011,1723606241822,-2138.89,0.00013698,2]
[334833012,1723606241831,-500.0,0.00013698,2]
[334833013,1723606241840,-500.0,0.00013698,2]
[334833014,1723606241849,-500.0,0.00013698,2]
[334833015,1723606241858,-500.0,0.00013698,2]
[334833016,1723606241867,-500.0,0.00013698,2]
[334833017,1723606241876,-1206.0,0.00013698,2]
[334833018,1723606241885,-500.0,0.00013698,2]
[334833019,1723606241894,-500.0,0.00013698,2]
[334833020,1723606241903,-503.32405472,0.00013698,2]
[334833021,1723606241912,-734.71,0.00013698,2]
[334833022,1723606241921,-500.0,0.00013698,2]
[334833023,1723606241931,-1244.17,0.00013698,2]
[334833024,1723606241941,-579.06136545,0.00013698,2]
[334833025,1723606241950,-720.69,0.00013698,2]
[334833026,1723606241960,-744.42,0.00013698,2]
[334833027,1723606241969,-500.0,0.00013698,2]
[334833028,1723606241979,-1424.96,0.00013698,2]
[334833029,1723606241988,-500.0,0.00013698,2]
[334833030,1723606241997,-500.0,0.00013698,2]
[334833031,1723606242007,-500.0,0.00013698,2]
[334833032,1723606242016,-500.0,0.00013698,2]
[334833033,1723606242025,-500.0,0.00013698,2]
[334833034,1723606242035,-500.0,0.00013698,2]
[334833035,1723606242046,-500.0,0.00013698,2]
[334833036,1723606242055,-500.0,0.00013698,2]
[334833037,1723606242064,-500.0,0.00013698,2]
[334833038,1723606242074,-500.0,0.00013698,2]
[334833039,1723606242083,-1700.15,0.00013698,2]
[334833040,1723606242092,-1009.26,0.00013698,2]
[334833041,1723606242101,-1729.02,0.00013698,2]
[334833042,1723606242110,-500.0,0.00013698,2]
[334833043,1723606242119,-500.0,0.00013698,2]
[334833044,1723606242128,-500.0,0.00013698,2]
[334833045,1723606242138,-715.73,0.00013698,2]
[334833046,1723606242150,-500.0,0.00013698,2]
[334833047,1723606242159,-500.0,0.00013698,2]
[334833048,1723606242168,-806.14,0.00013698,2]
[334833049,1723606242177,-1851.1,0.00013698,2]
[334833050,1723606242187,-1632.72,0.00013698,2]
[334833051,1723606242195,-500.0,0.00013698,2]
[334833052,1723606242204,-641.85,0.00013698,2]
[334833053,1723606242213,-500.0,0.00013698,2]
[334833054,1723606242222,-2952.62,0.00013698,2]
[334833055,1723606242231,-500.0,0.00013698,2]
[334833056,1723606242240,-500.0,0.00013698,2]
[334833057,1723606242249,-2012.27,0.00013698,2]
[334833058,1723606242258,-593.57,0.00013698,2]
[334833059,1723606242267,-538.72,0.00013698,2]
[334833060,1723606242275,-1377.11,0.00013698,2]
[334833061,1723606242285,-711.28,0.00013698,2]
[334833062,1723606242293,-1760.83,0.00013698,2]
[334833063,1723606242302,-500.0,0.00013698,2]
[334833064,1723606242311,-2220.15,0.00013698,2]
[334833065,1723606242320,-500.0,0.00013698,2]
[334833066,1723606242329,-500.0,0.00013698,2]
[334833067,1723606242338,-500.0,0.00013698,2]
[334833068,1723606242347,-1603.72,0.00013698,2]
[334833069,1723606242356,-500.0,0.00013698,2]
[334833070,1723606242365,-500.0,0.00013698,2]
[334833071,1723606242373,-500.0,0.00013698,2]
[334833072,1723606242382,-500.0,0.00013698,2]
[334833073,1723606242391,-500.0,0.00013698,2]
[334833074,1723606242400,-2425.01,0.00013698,2]
[334833075,1723606242409,-500.0,0.00013698,2]
[334833076,1723606242418,-500.0,0.00013698,2]
[334833077,1723606242426,-900.53,0.00013698,2]
[334833078,1723606242435,-826.53,0.00013698,2]
[334833079,1723606242444,-500.0,0.00013698,2]
[334833080,1723606242453,-500.0,0.00013698,2]
[334833081,1723606242462,-1526.93,0.00013698,2]
[334833082,1723606242471,-500.0,0.00013698,2]
[334833083,1723606242480,-500.0,0.00013698,2]
[334833084,1723606242489,-500.0,0.00013698,2]
[334833085,1723606242498,-704.57,0.00013698,2]
[334833086,1723606242507,-500.0,0.00013698,2]
[334833087,1723606242516,-1550.13,0.00013698,2]
[334833088,1723606242524,-767.88,0.00013698,2]
[334833089,1723606242533,-516.5,0.00013698,2]
[334833090,1723606242542,-648.78,0.00013698,2]
[334833091,1723606242551,-500.0,0.00013698,2]
[334833092,1723606242560,-932.89,0.00013698,2]
[334833094,1723606242569,-640.05,0.00013698,2]
[334833095,1723606242578,-1388.76,0.00013698,2]
[334833096,1723606242588,-500.0,0.00013698,2]
[334833097,1723606242597,-637.78,0.00013698,2]
[334833098,1723606242606,-2460.02,0.00013698,2]
[334833099,1723606242615,-500.0,0.00013698,2]
[334833100,1723606242624,-500.0,0.00013698,2]
[334833101,1723606242633,-500.0,0.00013698,2]
[334833102,1723606242642,-1435.53,0.00013698,2]
[334833103,1723606242651,-673.72,0.00013698,2]
[334833104,1723606242659,-597.05,0.00013698,2]
[334833105,1723606242668,-500.0,0.00013698,2]
[334833106,1723606242677,-1571.68,0.00013698,2]
[334833107,1723606242686,-1001.8,0.00013698,2]
[334833108,1723606242694,-500.0,0.00013698,2]
[334833109,1723606242703,-500.0,0.00013698,2]
[334833111,1723606242712,-500.0,0.00013698,2]
[334833113,1723606242721,-500.0,0.00013698,2]
[334833115,1723606242731,-1636.49,0.00013698,2]
[334833117,1723606242744,-500.0,0.00013698,2]
[334833118,1723606242753,-680.42,0.00013698,2]
[334833119,1723606242762,-891.1,0.00013698,2]
[334833120,1723606242771,-500.0,0.00013698,2]
[334833121,1723606242781,-500.0,0.00013698,2]
[334833122,1723606242790,-1446.08,0.00013698,2]
[334833123,1723606242799,-596.24,0.00013698,2]
[334833124,1723606242808,-1020.89,0.00013698,2]
[334833125,1723606242817,-2129.32,0.00013698,2]
[334833126,1723606242826,-500.0,0.00013698,2]
[334833127,1723606242835,-500.0,0.00013698,2]
[334833128,1723606242844,-500.0,0.00013698,2]
[334833129,1723606242853,-500.0,0.00013698,2]
[334833130,1723606242863,-500.0,0.00013698,2]
[334833131,1723606242872,-500.0,0.00013698,2]
[334833132,1723606242881,-2246.07,0.00013698,2]
[334833133,1723606242890,-500.0,0.00013698,2]
[334833134,1723606242900,-2352.39,0.00013698,2]
[334833135,1723606242909,-1415.94,0.00013698,2]
[334833136,1723606242918,-500.0,0.00013698,2]
[334833137,1723606242927,-500.0,0.00013698,2]
[334833138,1723606242936,-500.0,0.00013698,2]
[334833139,1723606242945,-500.0,0.00013698,2]
[334833140,1723606242954,-1289.28,0.00013698,2]
[334833141,1723606242963,-1181.14,0.00013698,2]
[334833142,1723606242971,-500.0,0.00013698,2]
[334833143,1723606242980,-587.16708365,0.00013698,2]
[334833144,1723606242989,-500.0,0.00013698,2]
[334833145,1723606242998,-1218.75,0.00013698,2]
[334833146,1723606243007,-1007.49,0.00013698,2]
[334833147,1723606243017,-738.52,0.00013698,2]
[334833150,1723606243027,-500.0,0.00013698,2]
[334833152,1723606243037,-502.17424041,0.00013698,2]
[334833155,1723606243046,-500.0,0.00013698,2]
[334833157,1723606243055,-504.39801482,0.00013698,2]
[334833159,1723606243064,-1335.68,0.00013698,2]
[334833161,1723606243074,-500.0,0.00013698,2]
[334833163,1723606243083,-1418.41,0.00013698,2]
[334833165,1723606243092,-500.0,0.00013698,2]
[334833167,1723606243102,-880.3,0.00013698,2]
[334833169,1723606243111,-500.0,0.00013698,2]
[334833171,1723606243120,-500.0,0.00013698,2]
[334833173,1723606243129,-861.16,0.00013698,2]
[334833174,1723606243139,-1333.35,0.00013698,2]
[334833175,1723606243148,-500.0,0.00013698,2]
[334833176,1723606243157,-1083.16,0.00013698,2]
[334833177,1723606243166,-2563.84,0.00013698,2]
[334833178,1723606243175,-500.0,0.00013698,2]
[334833179,1723606243185,-507.42,0.00013698,2]
[334833180,1723606243194,-500.0,0.00013698,2]
[334833181,1723606243203,-500.0,0.00013698,2]
[334833182,1723606243212,-500.0,0.00013698,2]
[334833183,1723606243221,-500.0,0.00013698,2]
[334833184,1723606243230,-573.3,0.00013698,2]
[334833185,1723606243239,-500.0,0.00013698,2]
[334833186,1723606243248,-500.0,0.00013698,2]
[334833187,1723606243258,-580.91,0.00013698,2]
[334833188,1723606243267,-530.84,0.00013698,2]
[334833189,1723606243276,-500.0,0.00013698,2]
[334833190,1723606243286,-596.67,0.00013698,2]
[334833191,1723606243296,-1626.94,0.00013698,2]
[334833192,1723606243305,-500.0,0.00013698,2]
[334833193,1723606243314,-500.0,0.00013698,2]
[334833194,1723606243324,-1291.86,0.00013698,2]
[334833195,1723606243333,-500.0,0.00013698,2]
[334833196,1723606243343,-718.25,0.00013698,2]
[334833197,1723606243353,-500.0,0.00013698,2]
[334833198,1723606243362,-1403.87,0.00013698,2]
[334833199,1723606243371,-1253.31,0.00013698,2]
[334833200,1723606243380,-500.0,0.00013698,2]
[334833201,1723606243390,-500.0,0.00013698,2]
[334833202,1723606243400,-500.0,0.00013698,2]
[334833203,1723606243409,-500.0,0.00013698,2]
[334833204,1723606243419,-1266.98,0.00013698,2]
[334833205,1723606243429,-990.05,0.00013698,2]
[334833206,1723606243438,-785.78,0.00013698,2]
[334833207,1723606243447,-961.72,0.00013698,2]
[334833208,1723606243457,-500.0,0.00013698,2]
[334833209,1723606243466,-500.0,0.00013698,2]
[334833211,1723606243476,-748.73,0.00013698,2]
[334833213,1723606243485,-928.23,0.00013698,2]
[334833214,1723606243495,-986.7,0.00013698,2]
[334833217,1723606243504,-1475.15,0.00013698,2]
[334833218,1723606243513,-500.0,0.00013698,2]
[334833219,1723606243523,-1516.9,0.00013698,2]
[334833220,1723606243532,-520.36,0.00013698,2]
[334833221,1723606243542,-724.33,0.00013698,2]
[334833222,1723606243551,-1066.62,0.00013698,2]
[334833223,1723606243560,-500.0,0.00013698,2]
[334833224,1723606243570,-500.0,0.00013698,2]
[334833225,1723606243583,-500.0,0.00013698,2]
[334833226,1723606243593,-515.24723361,0.00013698,2]
[334833227,1723606243602,-1339.64,0.00013698,2]
[334833228,1723606243612,-2145.04,0.00013698,2]
[334833229,1723606243622,-500.0,0.00013698,2]
[334833230,1723606243632,-1219.12,0.00013698,2]
[334833231,1723606243641,-2422.53,0.00013698,2]
[334833232,1723606243651,-770.76,0.00013698,2]
[334833233,1723606243661,-500.0,0.00013698,2]
[334833234,1723606243671,-500.0,0.00013698,2]
[334833235,1723606243680,-500.0,0.00013698,2]
[334833236,1723606243690,-613.62,0.00013698,2]
[334833237,1723606243699,-500.0,0.00013698,2]
[334833238,1723606243709,-1116.49,0.00013698,2]
[334833239,1723606243719,-2001.85,0.00013698,2]
[334833240,1723606243729,-500.0,0.00013698,2]
[334833241,1723606243741,-1590.84,0.00013698,2]
[334833242,1723606243751,-910.1,0.00013698,2]
[334833243,1723606243760,-500.0,0.00013698,2]
[334833244,1723606243769,-500.0,0.00013698,2]
[334833245,1723606243778,-875.89,0.00013698,2]
[334833246,1723606243787,-500.0,0.00013698,2]
[334833247,1723606243797,-183.316119,0.00013698,2]
[334833248,1723606243806,-500.0,0.00013698,2]
[334833249,1723606243817,-500.0,0.00013698,2]
[334833250,1723606243830,-500.0,0.00013698,2]
[334833251,1723606243848,-1610.3,0.00013698,2]